[Event "*** SCC Grand Prix: Titled Tuesday Blitz"]
[Site "Chess.com"]
[Date "2020.06.23"]
[Round "3"]
[White "Mikasinski"]
[Black "SamuelGhimpu2003"]
[Result "0-1"]
[WhiteElo "2398"]
[BlackElo "2608"]
[TimeControl "180+1"]
[EndTime "10:27:49 PDT"]
[Termination "SamuelGhimpu2003 won by resignation"]

1. e4 {[%clk 0:03:00.9]} 1... e6 {[%clk 0:02:52.5]} 2. d4 {[%clk 0:03:00.8]}
2... d5 {[%clk 0:02:53.4]} 3. Nc3 {[%clk 0:03:00.4]} 3... Nf6 {[%clk 0:02:53.1]}
4. Bg5 {[%clk 0:03:00]} 4... dxe4 {[%clk 0:02:53]} 5. Nxe4 {[%clk 0:02:56.9]}
5... Nbd7 {[%clk 0:02:52.7]} 6. Nf3 {[%clk 0:02:51]} 6... h6 {[%clk 0:02:50.1]}
7. Nxf6+ {[%clk 0:02:47.9]} 7... Nxf6 {[%clk 0:02:51]} 8. Bf4 {[%clk 0:02:46.9]}
8... Bd6 {[%clk 0:02:47.3]} 9. Bxd6 {[%clk 0:02:42.2]} 9... cxd6 {[%clk
0:02:48.2]} 10. Bd3 {[%clk 0:02:37.2]} 10... O-O {[%clk 0:02:44]} 11. O-O {[%clk
0:02:36.9]} 11... Re8 {[%clk 0:02:43.9]} 12. Re1 {[%clk 0:02:36.7]} 12... Qc7
{[%clk 0:02:43.7]} 13. c3 {[%clk 0:02:36.3]} 13... e5 {[%clk 0:02:39.2]} 14. Qe2
{[%clk 0:02:30.9]} 14... e4 {[%clk 0:02:30.6]} 15. Bc2 {[%clk 0:02:24.3]} 15...
Bg4 {[%clk 0:02:26.3]} 16. Qb5 {[%clk 0:01:40.2]} 16... exf3 {[%clk 0:02:23.1]}
17. gxf3 {[%clk 0:01:40.2]} 17... Bxf3 {[%clk 0:02:21]} 18. Qf5 {[%clk
0:01:39.6]} 18... Bh5 {[%clk 0:02:14]} 19. Bb3 {[%clk 0:01:37.1]} 19... Qd7
{[%clk 0:02:10.1]} 20. Qxd7 {[%clk 0:01:28.7]} 20... Nxd7 {[%clk 0:02:11]} 21.
Ba4 {[%clk 0:01:25.1]} 21... Bg4 {[%clk 0:02:08.4]} 22. Kg2 {[%clk 0:01:21.9]}
22... Rxe1 {[%clk 0:02:03.4]} 23. Rxe1 {[%clk 0:01:20.9]} 23... Nb6 {[%clk
0:02:04.3]} 24. Bb3 {[%clk 0:01:18]} 24... Kf8 {[%clk 0:02:03.5]} 25. Re4 {[%clk
0:01:17.3]} 25... Bd7 {[%clk 0:02:02.2]} 26. Rf4 {[%clk 0:01:14.6]} 26... Bc6+
{[%clk 0:02:00.9]} 27. Kg3 {[%clk 0:01:14.5]} 27... Bd5 {[%clk 0:02:01.4]} 28.
Bc2 {[%clk 0:01:09.8]} 28... Re8 {[%clk 0:01:59.2]} 29. b3 {[%clk 0:01:02.6]}
29... Re2 {[%clk 0:01:57.7]} 30. Bd3 {[%clk 0:01:01.3]} 30... Rxa2 {[%clk
0:01:53]} 31. c4 {[%clk 0:01:01.5]} 31... Be6 {[%clk 0:01:53.4]} 32. d5 {[%clk
0:01:00.8]} 32... Bd7 {[%clk 0:01:53.3]} 33. Bg6 {[%clk 0:01:00.2]} 33... f6
{[%clk 0:01:52.5]} 34. Re4 {[%clk 0:00:59.5]} 34... Rb2 {[%clk 0:01:51.9]} 35.
Re3 {[%clk 0:00:58.9]} 35... a5 {[%clk 0:01:50.9]} 36. Rc3 {[%clk 0:00:52.5]}
36... a4 {[%clk 0:01:40.6]} 37. bxa4 {[%clk 0:00:48.7]} 37... Nxa4 {[%clk
0:01:41.5]} 38. Re3 {[%clk 0:00:48.2]} 38... Rb4 {[%clk 0:01:35.8]} 39. Bd3
{[%clk 0:00:43.8]} 39... Rb3 {[%clk 0:01:32.2]} 40. Kf4 {[%clk 0:00:41.1]} 40...
Nc5 {[%clk 0:01:31.5]} 41. Be2 {[%clk 0:00:41.5]} 41... Rxe3 {[%clk 0:01:32.4]}
42. Kxe3 {[%clk 0:00:42]} 42... Ke7 {[%clk 0:01:31.7]} 43. Kd4 {[%clk
0:00:42.2]} 43... Kd8 {[%clk 0:01:31.6]} 44. Bd1 {[%clk 0:00:42.5]} 44... Ke7
{[%clk 0:01:31.9]} 45. Bc2 {[%clk 0:00:42.4]} 45... f5 {[%clk 0:01:32]} 46. f4
{[%clk 0:00:41.8]} 46... Kf6 {[%clk 0:01:31.9]} 47. h4 {[%clk 0:00:41.5]} 47...
Ba4 {[%clk 0:01:30.6]} 48. Bb1 {[%clk 0:00:41]} 48... g5 {[%clk 0:01:29.8]} 49.
fxg5+ {[%clk 0:00:39.5]} 49... hxg5 {[%clk 0:01:30.7]} 50. h5 {[%clk 0:00:31.7]}
50... Bd7 {[%clk 0:01:28.3]} 51. h6 {[%clk 0:00:31.2]} 51... Kg6 {[%clk
0:01:28.4]} 0-1

[Event "*** SCC Grand Prix: Titled Tuesday Blitz"]
[Site "Chess.com"]
[Date "2020.06.23"]
[Round "3"]
[White "felipelobo"]
[Black "pavlitas17"]
[Result "1-0"]
[WhiteElo "2111"]
[BlackElo "2312"]
[TimeControl "180+1"]
[EndTime "10:27:49 PDT"]
[Termination "felipelobo won by checkmate"]

1. e4 {[%clk 0:02:57.7]} 1... c5 {[%clk 0:02:58.3]} 2. Nc3 {[%clk 0:02:56.1]}
2... g6 {[%clk 0:02:57.1]} 3. f4 {[%clk 0:02:55]} 3... Bg7 {[%clk 0:02:56]} 4.
Nf3 {[%clk 0:02:54.8]} 4... d6 {[%clk 0:02:56.3]} 5. Bc4 {[%clk 0:02:52.4]} 5...
Nf6 {[%clk 0:02:56.1]} 6. d3 {[%clk 0:02:51.6]} 6... O-O {[%clk 0:02:56.1]} 7.
O-O {[%clk 0:02:49.8]} 7... Nc6 {[%clk 0:02:56.3]} 8. Qe1 {[%clk 0:02:46.2]}
8... Rb8 {[%clk 0:02:52.2]} 9. Qh4 {[%clk 0:02:40.9]} 9... Na5 {[%clk
0:02:48.8]} 10. f5 {[%clk 0:02:31.3]} 10... Nxc4 {[%clk 0:02:48]} 11. dxc4
{[%clk 0:02:29.4]} 11... a6 {[%clk 0:02:33.5]} 12. Bh6 {[%clk 0:02:25.6]} 12...
b5 {[%clk 0:02:31.5]} 13. Ng5 {[%clk 0:02:18.8]} 13... Nh5 {[%clk 0:02:14.9]}
14. Bxg7 {[%clk 0:02:07.2]} 14... Kxg7 {[%clk 0:02:13.7]} 15. g4 {[%clk
0:02:04.3]} 15... h6 {[%clk 0:02:06.7]} 16. gxh5 {[%clk 0:01:52]} 16... hxg5
{[%clk 0:02:04.8]} 17. Qxg5 {[%clk 0:01:47]} 17... Rh8 {[%clk 0:01:55.2]} 18.
fxg6 {[%clk 0:01:38.7]} 18... f6 {[%clk 0:01:55.2]} 19. Qh4 {[%clk 0:01:17.2]}
19... bxc4 {[%clk 0:01:49]} 20. Nd5 {[%clk 0:01:02.2]} 20... Rxb2 {[%clk
0:01:45.9]} 21. Rf2 {[%clk 0:00:56.5]} 21... Be6 {[%clk 0:00:57.1]} 22. Nxf6
{[%clk 0:00:23.9]} 22... exf6 {[%clk 0:00:55.5]} 23. Raf1 {[%clk 0:00:24.3]}
23... f5 {[%clk 0:00:33.4]} 24. h6+ {[%clk 0:00:23.1]} 24... Kg8 {[%clk
0:00:31.3]} 25. Qxd8# {[%clk 0:00:21.7]} 1-0

[Event "*** SCC Grand Prix: Titled Tuesday Blitz"]
[Site "Chess.com"]
[Date "2020.06.23"]
[Round "3"]
[White "reutik"]
[Black "RobertoJBM"]
[Result "1/2-1/2"]
[WhiteElo "2423"]
[BlackElo "2656"]
[TimeControl "180+1"]
[EndTime "10:27:53 PDT"]
[Termination "Game drawn by repetition"]

1. d4 {[%clk 0:03:00.9]} 1... d5 {[%clk 0:02:59.1]} 2. c4 {[%clk 0:03:00.9]}
2... c6 {[%clk 0:02:59.5]} 3. Nf3 {[%clk 0:03:00.8]} 3... Nf6 {[%clk 0:03:00]}
4. e3 {[%clk 0:03:00.6]} 4... Bf5 {[%clk 0:02:59.5]} 5. Nc3 {[%clk 0:03:00.3]}
5... e6 {[%clk 0:03:00]} 6. Nh4 {[%clk 0:03:00.5]} 6... Bg6 {[%clk 0:02:59.8]}
7. Qb3 {[%clk 0:02:57.7]} 7... Qb6 {[%clk 0:02:59.4]} 8. Nxg6 {[%clk 0:02:52.2]}
8... hxg6 {[%clk 0:02:59.3]} 9. Bd2 {[%clk 0:02:48.3]} 9... Nbd7 {[%clk
0:02:57.8]} 10. O-O-O {[%clk 0:02:41.4]} 10... Qxb3 {[%clk 0:02:46.3]} 11. axb3
{[%clk 0:02:41.3]} 11... Ng4 {[%clk 0:02:46.9]} 12. Be1 {[%clk 0:02:40.3]} 12...
f5 {[%clk 0:02:40.3]} 13. h3 {[%clk 0:02:36.5]} 13... Bd6 {[%clk 0:02:35.8]} 14.
Be2 {[%clk 0:02:28.3]} 14... Ngf6 {[%clk 0:02:33]} 15. Bd2 {[%clk 0:02:18.1]}
15... a6 {[%clk 0:02:32.1]} 16. g4 {[%clk 0:02:09.7]} 16... Kf7 {[%clk 0:02:31]}
17. f4 {[%clk 0:01:59]} 17... Rh7 {[%clk 0:02:26.7]} 18. g5 {[%clk 0:01:55.5]}
18... Ne4 {[%clk 0:02:17.7]} 19. Nxe4 {[%clk 0:01:55.3]} 19... fxe4 {[%clk
0:02:14]} 20. c5 {[%clk 0:01:51.2]} 20... Bc7 {[%clk 0:02:13.1]} 21. b4 {[%clk
0:01:50.3]} 21... Rah8 {[%clk 0:02:11.9]} 22. Bg4 {[%clk 0:01:48.7]} 22... Ke7
{[%clk 0:02:10.3]} 23. Kc2 {[%clk 0:01:47.1]} 23... Nf8 {[%clk 0:01:59.3]} 24.
Rh2 {[%clk 0:01:41.6]} 24... Nd7 {[%clk 0:01:59.3]} 25. Rdh1 {[%clk 0:01:40.8]}
25... Nf8 {[%clk 0:01:59.4]} 26. h4 {[%clk 0:01:38.7]} 26... Kf7 {[%clk
0:01:59.5]} 27. Kb3 {[%clk 0:01:36.7]} 27... Nd7 {[%clk 0:01:56.2]} 28. Rh3
{[%clk 0:01:35.3]} 28... Nf8 {[%clk 0:01:56.3]} 29. Ka4 {[%clk 0:01:33.8]} 29...
Nd7 {[%clk 0:01:55.8]} 30. Be1 {[%clk 0:01:32.2]} 30... Nf8 {[%clk 0:01:55.8]}
31. Bg3 {[%clk 0:01:27]} 31... Bd8 {[%clk 0:01:56]} 32. h5 {[%clk 0:01:20.6]}
32... gxh5 {[%clk 0:01:55.7]} 33. Bxh5+ {[%clk 0:01:18.8]} 33... g6 {[%clk
0:01:55.8]} 34. Bg4 {[%clk 0:01:18.7]} 34... Rxh3 {[%clk 0:01:55.7]} 35. Bxh3
{[%clk 0:01:15.9]} 35... Ke8 {[%clk 0:01:51.9]} 36. Rh2 {[%clk 0:01:15]} 36...
Rh7 {[%clk 0:01:51.4]} 37. Bg4 {[%clk 0:01:13.1]} 37... Rxh2 {[%clk 0:01:52.3]}
38. Bxh2 {[%clk 0:01:13.3]} 38... Kd7 {[%clk 0:01:52.9]} 39. Bg3 {[%clk
0:01:11]} 39... Bc7 {[%clk 0:01:53.3]} 40. Bh4 {[%clk 0:01:10.5]} 40... Nh7
{[%clk 0:01:50.5]} 41. Bf2 {[%clk 0:01:08.7]} 41... Nf8 {[%clk 0:01:49.8]} 42.
Bh4 {[%clk 0:01:08.7]} 42... Bd8 {[%clk 0:01:48.3]} 43. Bh3 {[%clk 0:01:05.3]}
43... Be7 {[%clk 0:01:48.5]} 44. Bg4 {[%clk 0:01:04.9]} 44... Kd8 {[%clk
0:01:48.3]} 45. Bh3 {[%clk 0:01:04.9]} 45... Ke8 {[%clk 0:01:48.7]} 46. Bg4
{[%clk 0:01:05]} 46... Bd8 {[%clk 0:01:48.1]} 47. Bh3 {[%clk 0:01:04.8]} 47...
Bc7 {[%clk 0:01:48.2]} 48. Bg4 {[%clk 0:01:04.7]} 48... Kf7 {[%clk 0:01:48.6]}
49. Bh3 {[%clk 0:01:04.5]} 49... Nd7 {[%clk 0:01:48.7]} 50. Bg4 {[%clk
0:01:03.6]} 50... Ke7 {[%clk 0:01:46]} 51. Bh3 {[%clk 0:01:01.1]} 51... Nf8
{[%clk 0:01:36.2]} 52. Bg4 {[%clk 0:01:00.7]} 52... Bb8 {[%clk 0:01:36.3]} 53.
Bh3 {[%clk 0:01:00.4]} 53... Bc7 {[%clk 0:01:36.3]} 54. Bg4 {[%clk 0:01:00.3]}
54... Kf7 {[%clk 0:01:36.7]} 55. Bh3 {[%clk 0:01:00.3]} 55... Kg7 {[%clk
0:01:37.1]} 56. Bg4 {[%clk 0:01:00.5]} 56... Kg8 {[%clk 0:01:37.2]} 57. Bh3
{[%clk 0:01:00.7]} 57... Kf7 {[%clk 0:01:37.2]} 58. Bg4 {[%clk 0:01:01.1]} 58...
Bd8 {[%clk 0:01:37.6]} 59. Bh3 {[%clk 0:01:00.7]} 59... Nd7 {[%clk 0:01:37.6]}
60. Bg4 {[%clk 0:01:00.8]} 60... Be7 {[%clk 0:01:36.1]} 61. Bh3 {[%clk
0:01:00.4]} 61... Bf8 {[%clk 0:01:36.4]} 62. Bg3 {[%clk 0:00:57.6]} 62... Be7
{[%clk 0:01:36.2]} 63. Bg4 {[%clk 0:00:56.5]} 63... Bd8 {[%clk 0:01:36.5]} 64.
Bh4 {[%clk 0:00:56.1]} 64... Bc7 {[%clk 0:01:36.7]} 65. Bh3 {[%clk 0:00:56.4]}
65... Nf8 {[%clk 0:01:37.1]} 66. Bg4 {[%clk 0:00:56.5]} 66... Kg7 {[%clk
0:01:37.6]} 67. Bh3 {[%clk 0:00:56.5]} 67... Kg8 {[%clk 0:01:38]} 68. Bg4 {[%clk
0:00:56.8]} 68... Kf7 {[%clk 0:01:38.3]} 1/2-1/2

[Event "*** SCC Grand Prix: Titled Tuesday Blitz"]
[Site "Chess.com"]
[Date "2020.06.23"]
[Round "3"]
[White "Raja3401"]
[Black "iverichighladze"]
[Result "1-0"]
[WhiteElo "2795"]
[BlackElo "2452"]
[TimeControl "180+1"]
[EndTime "10:27:54 PDT"]
[Termination "Raja3401 won by resignation"]

1. e4 {[%clk 0:03:00.9]} 1... Nf6 {[%clk 0:02:59.9]} 2. e5 {[%clk 0:02:59.6]}
2... Nd5 {[%clk 0:02:59.9]} 3. d4 {[%clk 0:03:00.3]} 3... d6 {[%clk 0:03:00.2]}
4. c4 {[%clk 0:03:01]} 4... Nb6 {[%clk 0:02:59.9]} 5. f4 {[%clk 0:03:01.7]} 5...
dxe5 {[%clk 0:02:59.4]} 6. fxe5 {[%clk 0:03:01.6]} 6... Nc6 {[%clk 0:02:59.7]}
7. Be3 {[%clk 0:03:00.5]} 7... Bf5 {[%clk 0:02:59.6]} 8. Nc3 {[%clk 0:02:56.7]}
8... e6 {[%clk 0:02:59.6]} 9. Be2 {[%clk 0:02:53]} 9... Qd7 {[%clk 0:02:59]} 10.
Nf3 {[%clk 0:02:52.2]} 10... Rd8 {[%clk 0:02:58.2]} 11. O-O {[%clk 0:02:51.7]}
11... Bg4 {[%clk 0:02:58.4]} 12. Ng5 {[%clk 0:02:25.3]} 12... Nxc4 {[%clk
0:02:57.9]} 13. Bxc4 {[%clk 0:02:10.2]} 13... Bxd1 {[%clk 0:02:54.6]} 14. Raxd1
{[%clk 0:02:11.1]} 14... Be7 {[%clk 0:02:22.5]} 15. Nxf7 {[%clk 0:01:52.2]}
15... O-O {[%clk 0:02:21.3]} 16. Nxd8 {[%clk 0:01:48.2]} 16... Rxf1+ {[%clk
0:02:20]} 17. Kxf1 {[%clk 0:01:39]} 17... Nxd8 {[%clk 0:02:18.7]} 18. d5 {[%clk
0:01:34.8]} 18... Qe8 {[%clk 0:02:14.6]} 19. dxe6 {[%clk 0:01:25.8]} 19... a6
{[%clk 0:02:03.6]} 20. Nd5 {[%clk 0:01:19.3]} 20... b5 {[%clk 0:02:01.3]} 21.
Bb3 {[%clk 0:01:16.5]} 21... Nxe6 {[%clk 0:01:53.6]} 22. Nf4 {[%clk 0:00:56]}
22... Kh8 {[%clk 0:01:41.7]} 23. Bxe6 {[%clk 0:00:34.3]} 23... g5 {[%clk
0:01:27]} 24. Nd5 {[%clk 0:00:28.7]} 24... Qh5 {[%clk 0:01:20.4]} 25. Rd2 {[%clk
0:00:25.6]} 25... Qg6 {[%clk 0:01:09.8]} 26. Bd7 {[%clk 0:00:11.7]} 26... Qe4
{[%clk 0:01:01]} 27. e6 {[%clk 0:00:08.9]} 27... Bd6 {[%clk 0:00:53.7]} 28. Bd4+
{[%clk 0:00:08.8]} 28... Kg8 {[%clk 0:00:52.7]} 29. Nf6+ {[%clk 0:00:08.7]}
29... Kf8 {[%clk 0:00:51.8]} 30. Nxe4 {[%clk 0:00:09.6]} 1-0

[Event "*** SCC Grand Prix: Titled Tuesday Blitz"]
[Site "Chess.com"]
[Date "2020.06.23"]
[Round "3"]
[White "nitpicker"]
[Black "WelshTiger"]
[Result "0-1"]
[WhiteElo "2172"]
[BlackElo "2363"]
[TimeControl "180+1"]
[EndTime "10:27:54 PDT"]
[Termination "WelshTiger won by resignation"]

1. d4 {[%clk 0:03:00.9]} 1... Nf6 {[%clk 0:02:59]} 2. c4 {[%clk 0:03:00.5]} 2...
c5 {[%clk 0:02:59]} 3. d5 {[%clk 0:03:00]} 3... e6 {[%clk 0:02:59.4]} 4. Nc3
{[%clk 0:02:59.2]} 4... exd5 {[%clk 0:02:59.8]} 5. cxd5 {[%clk 0:02:59.9]} 5...
d6 {[%clk 0:03:00.4]} 6. e4 {[%clk 0:03:00]} 6... g6 {[%clk 0:03:00.6]} 7. h3
{[%clk 0:03:00.2]} 7... Bg7 {[%clk 0:03:00.3]} 8. Nf3 {[%clk 0:03:00.8]} 8...
O-O {[%clk 0:03:00.8]} 9. Bd3 {[%clk 0:03:01.3]} 9... Re8 {[%clk 0:03:01.4]} 10.
O-O {[%clk 0:03:00.4]} 10... c4 {[%clk 0:03:02.1]} 11. Bc2 {[%clk 0:03:00.6]}
11... b5 {[%clk 0:03:01.8]} 12. a3 {[%clk 0:02:59]} 12... a6 {[%clk 0:03:01.6]}
13. Bf4 {[%clk 0:02:51]} 13... Qb6 {[%clk 0:03:00.4]} 14. Be3 {[%clk 0:02:37.9]}
14... Qc7 {[%clk 0:03:00.4]} 15. Nd4 {[%clk 0:02:37.3]} 15... Bb7 {[%clk
0:02:58.3]} 16. Bf4 {[%clk 0:02:31.7]} 16... Bf8 {[%clk 0:02:52.3]} 17. Rc1
{[%clk 0:02:22.6]} 17... Nbd7 {[%clk 0:02:52]} 18. b4 {[%clk 0:02:16.6]} 18...
cxb3 {[%clk 0:02:27.5]} 19. Bxb3 {[%clk 0:02:13.4]} 19... Nc5 {[%clk 0:02:24.3]}
20. Re1 {[%clk 0:01:53.9]} 20... Qa5 {[%clk 0:02:15.1]} 21. Bd2 {[%clk
0:01:31.6]} 21... Nd3 {[%clk 0:02:05.9]} 22. Ncxb5 {[%clk 0:01:26.5]} 22... Qd8
{[%clk 0:02:05.4]} 23. Nc7 {[%clk 0:01:03.2]} 23... Nxc1 {[%clk 0:01:55.8]} 24.
Nxe8 {[%clk 0:01:02.9]} 24... Nxe8 {[%clk 0:01:37.9]} 25. Bxc1 {[%clk
0:00:58.8]} 25... Qb6 {[%clk 0:01:33.8]} 26. Nc6 {[%clk 0:00:54.3]} 26... Nf6
{[%clk 0:01:11.5]} 27. Be3 {[%clk 0:00:53.4]} 27... Qc7 {[%clk 0:01:09.6]} 28.
Bd4 {[%clk 0:00:46.2]} 28... Nd7 {[%clk 0:01:09.4]} 29. Ba4 {[%clk 0:00:45.2]}
29... Nc5 {[%clk 0:01:07]} 30. Bxc5 {[%clk 0:00:39.9]} 30... dxc5 {[%clk
0:01:07.9]} 31. e5 {[%clk 0:00:40.4]} 31... Bxc6 {[%clk 0:00:49.4]} 32. Bxc6
{[%clk 0:00:39.5]} 32... Rd8 {[%clk 0:00:50.1]} 33. Qe2 {[%clk 0:00:29.7]} 33...
Qa5 {[%clk 0:00:49]} 34. Qf3 {[%clk 0:00:20.6]} 34... Qxe1+ {[%clk 0:00:46.4]}
35. Kh2 {[%clk 0:00:20.9]} 35... Qxe5+ {[%clk 0:00:46.9]} 0-1

[Event "*** SCC Grand Prix: Titled Tuesday Blitz"]
[Site "Chess.com"]
[Date "2020.06.23"]
[Round "3"]
[White "Bayernbk"]
[Black "diamonds13"]
[Result "1-0"]
[WhiteElo "2456"]
[BlackElo "2262"]
[TimeControl "180+1"]
[EndTime "10:27:55 PDT"]
[Termination "Bayernbk won by resignation"]

1. e4 {[%clk 0:02:57.2]} 1... c5 {[%clk 0:02:59.9]} 2. c3 {[%clk 0:02:57.5]}
2... d5 {[%clk 0:02:59.1]} 3. exd5 {[%clk 0:02:58.4]} 3... Qxd5 {[%clk
0:02:59.5]} 4. d4 {[%clk 0:02:59.3]} 4... Nf6 {[%clk 0:02:58.7]} 5. Nf3 {[%clk
0:02:59.5]} 5... Bf5 {[%clk 0:02:58.6]} 6. Be2 {[%clk 0:02:58.4]} 6... e6 {[%clk
0:02:58.8]} 7. O-O {[%clk 0:02:58.1]} 7... Nc6 {[%clk 0:02:58.2]} 8. Be3 {[%clk
0:02:58.3]} 8... cxd4 {[%clk 0:02:57.6]} 9. Nxd4 {[%clk 0:02:58.9]} 9... Nxd4
{[%clk 0:02:56.5]} 10. Bxd4 {[%clk 0:02:59.5]} 10... Be7 {[%clk 0:02:54.5]} 11.
Bf3 {[%clk 0:02:58.5]} 11... Qd7 {[%clk 0:02:54.2]} 12. Nd2 {[%clk 0:02:55.1]}
12... O-O {[%clk 0:02:49.7]} 13. Nc4 {[%clk 0:02:55.6]} 13... Qc7 {[%clk
0:02:43.4]} 14. Ne3 {[%clk 0:02:45.6]} 14... Bg6 {[%clk 0:02:40.4]} 15. Qe2
{[%clk 0:02:41.9]} 15... Rfd8 {[%clk 0:02:40]} 16. Rfd1 {[%clk 0:02:40.9]} 16...
e5 {[%clk 0:02:39.7]} 17. Bxb7 {[%clk 0:02:07.4]} 17... exd4 {[%clk 0:02:26.6]}
18. Bxa8 {[%clk 0:02:07.1]} 18... d3 {[%clk 0:02:24.4]} 19. Qf3 {[%clk
0:02:01.9]} 19... Bh5 {[%clk 0:02:24.1]} 20. g4 {[%clk 0:02:02.4]} 20... Bg6
{[%clk 0:02:18.2]} 21. Nd5 {[%clk 0:01:53.6]} 21... Nxd5 {[%clk 0:01:47.7]} 22.
Bxd5 {[%clk 0:01:54.5]} 22... Qe5 {[%clk 0:01:45.3]} 23. Re1 {[%clk 0:01:08.3]}
23... Qxd5 {[%clk 0:01:41.4]} 24. Qxd5 {[%clk 0:01:06.6]} 24... Rxd5 {[%clk
0:01:40.3]} 25. Rxe7 {[%clk 0:01:07.2]} 25... Kf8 {[%clk 0:01:32.3]} 26. Ree1
{[%clk 0:01:02.6]} 26... d2 {[%clk 0:01:31]} 27. Red1 {[%clk 0:01:03.1]} 27...
Bc2 {[%clk 0:01:27.5]} 28. f3 {[%clk 0:01:01.2]} 28... f5 {[%clk 0:01:19]} 29.
gxf5 {[%clk 0:00:56.4]} 29... Kf7 {[%clk 0:01:16.7]} 30. Kf2 {[%clk 0:00:55.2]}
30... Kf6 {[%clk 0:01:15.6]} 31. Ke3 {[%clk 0:00:53.9]} 31... Bxd1 {[%clk
0:01:08.1]} 32. Rxd1 {[%clk 0:00:54.8]} 32... Rb5 {[%clk 0:01:06.5]} 33. Rxd2
{[%clk 0:00:51.1]} 33... Kxf5 {[%clk 0:01:06.7]} 34. c4 {[%clk 0:00:47]} 34...
Ra5 {[%clk 0:01:05.8]} 35. Rd5+ {[%clk 0:00:44.9]} 35... Rxd5 {[%clk 0:01:04.9]}
36. cxd5 {[%clk 0:00:45.8]} 36... Ke5 {[%clk 0:01:05.3]} 37. d6 {[%clk
0:00:46.4]} 37... Kxd6 {[%clk 0:01:05.2]} 38. Kd4 {[%clk 0:00:47]} 38... h5
{[%clk 0:01:03.9]} 39. f4 {[%clk 0:00:45]} 39... g6 {[%clk 0:01:03.4]} 40. h4
{[%clk 0:00:44.5]} 40... Ke6 {[%clk 0:01:03.4]} 41. Ke4 {[%clk 0:00:44.3]} 41...
Kf6 {[%clk 0:01:03.3]} 42. b4 {[%clk 0:00:43.8]} 42... Ke6 {[%clk 0:01:03.5]}
43. a4 {[%clk 0:00:43.7]} 43... Kd6 {[%clk 0:01:03.9]} 44. f5 {[%clk 0:00:43.1]}
44... gxf5+ {[%clk 0:01:03.1]} 45. Kxf5 {[%clk 0:00:44]} 45... Kd5 {[%clk
0:01:03.4]} 46. Kg5 {[%clk 0:00:44.6]} 46... Kc4 {[%clk 0:01:04.2]} 47. Kxh5
{[%clk 0:00:44.1]} 47... Kxb4 {[%clk 0:01:05.1]} 48. Kg5 {[%clk 0:00:44.7]}
48... Kxa4 {[%clk 0:01:06]} 49. h5 {[%clk 0:00:45.3]} 49... Kb4 {[%clk
0:01:06.9]} 50. h6 {[%clk 0:00:45.9]} 50... a5 {[%clk 0:01:07.8]} 51. h7 {[%clk
0:00:46.6]} 51... a4 {[%clk 0:01:08.7]} 52. h8=Q {[%clk 0:00:47]} 52... a3
{[%clk 0:01:09.6]} 53. Qa1 {[%clk 0:00:47.3]} 53... Kb3 {[%clk 0:01:10.5]} 54.
Kf4 {[%clk 0:00:47.8]} 54... a2 {[%clk 0:01:10.5]} 55. Ke3 {[%clk 0:00:48.3]}
1-0

[Event "*** SCC Grand Prix: Titled Tuesday Blitz"]
[Site "Chess.com"]
[Date "2020.06.23"]
[Round "3"]
[White "Novoselski"]
[Black "ENEASZ"]
[Result "1-0"]
[WhiteElo "2302"]
[BlackElo "2492"]
[TimeControl "180+1"]
[EndTime "10:27:57 PDT"]
[Termination "Novoselski won by resignation"]

1. e4 {[%clk 0:03:00.9]} 1... d6 {[%clk 0:02:55]} 2. d4 {[%clk 0:02:59.6]} 2...
Nf6 {[%clk 0:02:54.5]} 3. Nc3 {[%clk 0:02:59.1]} 3... e5 {[%clk 0:02:54.2]} 4.
Nf3 {[%clk 0:02:58.1]} 4... Nbd7 {[%clk 0:02:54.1]} 5. Bc4 {[%clk 0:02:57.7]}
5... Be7 {[%clk 0:02:54.4]} 6. O-O {[%clk 0:02:57.5]} 6... O-O {[%clk
0:02:54.7]} 7. Re1 {[%clk 0:02:56.4]} 7... c6 {[%clk 0:02:53.4]} 8. a4 {[%clk
0:02:55.4]} 8... b6 {[%clk 0:02:53.7]} 9. Bg5 {[%clk 0:02:45.4]} 9... h6 {[%clk
0:02:47.2]} 10. Bh4 {[%clk 0:02:44.1]} 10... Bb7 {[%clk 0:02:38.7]} 11. Ba2
{[%clk 0:02:33.3]} 11... a6 {[%clk 0:02:38.5]} 12. Bg3 {[%clk 0:02:25]} 12...
Re8 {[%clk 0:02:31]} 13. dxe5 {[%clk 0:02:17.9]} 13... dxe5 {[%clk 0:02:29.5]}
14. Nxe5 {[%clk 0:02:16.1]} 14... Nxe5 {[%clk 0:02:29]} 15. Bxe5 {[%clk
0:02:16.6]} 15... Qc8 {[%clk 0:02:29.3]} 16. Bg3 {[%clk 0:02:09]} 16... Bb4
{[%clk 0:02:24]} 17. e5 {[%clk 0:01:57.9]} 17... Nd5 {[%clk 0:02:23.6]} 18. Qf3
{[%clk 0:01:52.9]} 18... Bxc3 {[%clk 0:02:19.3]} 19. bxc3 {[%clk 0:01:52]} 19...
b5 {[%clk 0:02:19.3]} 20. c4 {[%clk 0:01:48.5]} 20... bxc4 {[%clk 0:02:17.9]}
21. Bxc4 {[%clk 0:01:47.3]} 21... a5 {[%clk 0:02:16.3]} 22. Bd3 {[%clk
0:01:42.8]} 22... Ba6 {[%clk 0:02:12.9]} 23. Bf5 {[%clk 0:01:36.6]} 23... Qd8
{[%clk 0:02:07.6]} 24. h4 {[%clk 0:01:32.4]} 24... Rb8 {[%clk 0:01:55]} 25. Qg4
{[%clk 0:01:26.3]} 25... Rb4 {[%clk 0:01:53.2]} 26. Re4 {[%clk 0:01:22.6]} 26...
Rxe4 {[%clk 0:01:50.6]} 27. Bxe4 {[%clk 0:01:20.9]} 27... Nc3 {[%clk 0:01:46.1]}
28. Bf5 {[%clk 0:01:13.2]} 28... Qd5 {[%clk 0:01:29.8]} 29. Kh2 {[%clk 0:01:03]}
29... Be2 {[%clk 0:01:22.9]} 30. Qf4 {[%clk 0:00:57.6]} 30... Ba6 {[%clk
0:01:12.1]} 31. Re1 {[%clk 0:00:54.2]} 31... Bc8 {[%clk 0:01:07.8]} 32. Bxc8
{[%clk 0:00:52.1]} 32... Rxc8 {[%clk 0:01:08.7]} 33. Re3 {[%clk 0:00:46.5]}
33... Na2 {[%clk 0:01:03.7]} 34. Rd3 {[%clk 0:00:44.3]} 34... Qc5 {[%clk
0:00:59.2]} 35. e6 {[%clk 0:00:41.8]} 35... fxe6 {[%clk 0:00:54.4]} 36. Rd7
{[%clk 0:00:40.8]} 36... Qf8 {[%clk 0:00:54.2]} 37. Qc4 {[%clk 0:00:38.5]} 37...
Nb4 {[%clk 0:00:53.8]} 38. Qxe6+ {[%clk 0:00:38]} 38... Kh8 {[%clk 0:00:53.8]}
39. Rf7 {[%clk 0:00:36.8]} 39... Qe8 {[%clk 0:00:51]} 40. Qg6 {[%clk 0:00:36.5]}
40... Qg8 {[%clk 0:00:45.1]} 41. Be5 {[%clk 0:00:36]} 1-0